{"text_format":"3","workbook":"xlsx","n_sheets":1,"sheets":["Ngân sách hàng tháng cá nhân"],"read":"whole","date_system":"1900"}

{"sheet":"Ngân sách hàng tháng cá nhân","index":0,"n_rows":62,"n_cols":10,"rows_kept":62,"merged":[[0,1,0,9],[2,1,4,1],[2,2,2,3],[2,7,2,8],[3,2,3,3],[3,7,3,8],[4,2,4,3],[4,6,4,8],[5,1,7,1],[5,2,5,3],[5,7,5,8],[6,2,6,3],[6,7,6,8],[7,2,7,3],[7,6,7,8],[20,6,20,9],[21,1,21,4],[29,6,29,9],[31,1,31,4],[36,6,36,9],[38,1,38,4],[42,6,42,9],[44,1,44,4],[48,6,48,9],[52,1,52,4],[55,6,55,9]]}
[null,"Ngân sách cá nhân hàng tháng"]
[]
[null,"THU NHẬP HÀNG THÁNG DỰ KIẾN","Thu nhập 1",null,{"v":2500,"d":"2,500 ₫"},null,"TỔNG CHI PHÍ DỰ KIẾN ","(Thu nhập dự kiến trừ chi phí)",null,{"$f":"SUM(C21,C31,C38,C44,C52,C62,H20,H29,H36,H42,H48,H55)","v":{"v":2060,"d":"2,060 ₫"}}]
[null,null,"Thu nhập thêm",null,{"v":500,"d":"500 ₫"},null,"TỔNG CHI PHÍ THỰC TẾ ","(Thu nhập thực tế trừ chi phí)",null,{"$f":"SUM(D21,D31,D38,D44,D52,D62,I20,I29,I36,I42,I48,I55)","v":{"v":2040,"d":"2,040 ₫"}}]
[null,null,"Tổng thu nhập hàng tháng",null,{"$f":"SUM(E3:E4)","v":{"v":3000,"d":"3,000 ₫"}},null,"Tổng chênh lệch chi phí",null,null,{"$f":"SUM(E21,E31,E38,E44,E52,E62,J20,J29,J36,J42,J48,J55)","v":{"v":20,"d":"20 ₫"}}]
[null,"THU NHẬP HÀNG THÁNG THỰC TẾ","Thu nhập 1",null,{"v":2500,"d":"2,500 ₫"},null,"SỐ DƯ DỰ KIẾN","(Thu nhập dự kiến trừ chi phí)",null,{"$f":"E5-J3","v":{"v":940,"d":"940 ₫"}}]
[null,null,"Thu nhập thêm",null,{"v":500,"d":"500 ₫"},null,"SỐ DƯ THỰC TẾ","(Thu nhập thực tế trừ chi phí)",null,{"$f":"E8-J4","v":{"v":960,"d":"960 ₫"}}]
[null,null,"Tổng thu nhập hàng tháng",null,{"$f":"SUM(E6:E7)","v":{"v":3000,"d":"3,000 ₫"}},null,"CHÊNH LỆCH SỐ DƯ (Thực tế trừ dự kiến)",null,null,{"$f":"J7-J6","v":{"v":20,"d":"20 ₫"}}]
[]
[null,"NHÀ Ở","Chi phí theo kế hoạch","Chi phí Thực tế","Chênh lệch",null,"GIẢI TRÍ","Chi phí dự kiến","Chi phí Thực tế","Chênh lệch"]
[null,"Tiền thế chấp hoặc tiền thuê",{"v":1500,"d":"1,500 ₫"},{"v":1400,"d":"1,400 ₫"},{"$f":"Nhà_ở[[#This Row],[Chi phí theo kế hoạch]]-Nhà_ở[[#This Row],[Chi phí Thực tế]]","v":{"v":100,"d":"100 ₫"}},null,"Video/DVD",{"v":0,"d":"0 ₫"},{"v":50,"d":"50 ₫"},{"$f":"Giải_trí[[#This Row],[Chi phí dự kiến]]-Giải_trí[[#This Row],[Chi phí Thực tế]]","v":{"v":-50,"d":"-50 ₫"}}]
[null,"Điện thoại",{"v":60,"d":"60 ₫"},{"v":100,"d":"100 ₫"},{"$f":"Nhà_ở[[#This Row],[Chi phí theo kế hoạch]]-Nhà_ở[[#This Row],[Chi phí Thực tế]]","v":{"v":-40,"d":"-40 ₫"}},null,"CD",null,null,{"$f":"Giải_trí[[#This Row],[Chi phí dự kiến]]-Giải_trí[[#This Row],[Chi phí Thực tế]]","v":{"v":0,"d":"0 ₫"}}]
[null,"Điện",{"v":50,"d":"50 ₫"},{"v":60,"d":"60 ₫"},{"$f":"Nhà_ở[[#This Row],[Chi phí theo kế hoạch]]-Nhà_ở[[#This Row],[Chi phí Thực tế]]","v":{"v":-10,"d":"-10 ₫"}},null,"Phim",null,null,{"$f":"Giải_trí[[#This Row],[Chi phí dự kiến]]-Giải_trí[[#This Row],[Chi phí Thực tế]]","v":{"v":0,"d":"0 ₫"}}]
[null,"Khí đốt",{"v":200,"d":"200 ₫"},{"v":180,"d":"180 ₫"},{"$f":"Nhà_ở[[#This Row],[Chi phí theo kế hoạch]]-Nhà_ở[[#This Row],[Chi phí Thực tế]]","v":{"v":20,"d":"20 ₫"}},null,"Buổi hòa nhạc",null,null,{"$f":"Giải_trí[[#This Row],[Chi phí dự kiến]]-Giải_trí[[#This Row],[Chi phí Thực tế]]","v":{"v":0,"d":"0 ₫"}}]
[null,"Nước và nước thải",null,null,{"$f":"Nhà_ở[[#This Row],[Chi phí theo kế hoạch]]-Nhà_ở[[#This Row],[Chi phí Thực tế]]","v":{"v":0,"d":"0 ₫"}},null,"Sự kiện thể thao",null,null,{"$f":"Giải_trí[[#This Row],[Chi phí dự kiến]]-Giải_trí[[#This Row],[Chi phí Thực tế]]","v":{"v":0,"d":"0 ₫"}}]
[null,"Cáp",null,null,{"$f":"Nhà_ở[[#This Row],[Chi phí theo kế hoạch]]-Nhà_ở[[#This Row],[Chi phí Thực tế]]","v":{"v":0,"d":"0 ₫"}},null,"Nhà hát",null,null,{"$f":"Giải_trí[[#This Row],[Chi phí dự kiến]]-Giải_trí[[#This Row],[Chi phí Thực tế]]","v":{"v":0,"d":"0 ₫"}}]
[null,"Loại bỏ rác thải",null,null,{"$f":"Nhà_ở[[#This Row],[Chi phí theo kế hoạch]]-Nhà_ở[[#This Row],[Chi phí Thực tế]]","v":{"v":0,"d":"0 ₫"}},null,"Khác",null,null,{"$f":"Giải_trí[[#This Row],[Chi phí dự kiến]]-Giải_trí[[#This Row],[Chi phí Thực tế]]","v":{"v":0,"d":"0 ₫"}}]
[null,"Bảo trì hoặc sửa chữa",null,null,{"$f":"Nhà_ở[[#This Row],[Chi phí theo kế hoạch]]-Nhà_ở[[#This Row],[Chi phí Thực tế]]","v":{"v":0,"d":"0 ₫"}},null,"Khác",null,null,{"$f":"Giải_trí[[#This Row],[Chi phí dự kiến]]-Giải_trí[[#This Row],[Chi phí Thực tế]]","v":{"v":0,"d":"0 ₫"}}]
[null,"Nhu yếu phẩm",null,null,{"$f":"Nhà_ở[[#This Row],[Chi phí theo kế hoạch]]-Nhà_ở[[#This Row],[Chi phí Thực tế]]","v":{"v":0,"d":"0 ₫"}},null,"Khác",null,null,{"$f":"Giải_trí[[#This Row],[Chi phí dự kiến]]-Giải_trí[[#This Row],[Chi phí Thực tế]]","v":{"v":0,"d":"0 ₫"}}]
[null,"Khác",null,null,{"$f":"Nhà_ở[[#This Row],[Chi phí theo kế hoạch]]-Nhà_ở[[#This Row],[Chi phí Thực tế]]","v":{"v":0,"d":"0 ₫"}},null,"Tổng",{"$f":"SUBTOTAL(109,Giải_trí[Chi phí dự kiến])","v":{"v":0,"d":"0 ₫"}},{"$f":"SUBTOTAL(109,Giải_trí[Chi phí Thực tế])","v":{"v":50,"d":"50 ₫"}},{"$f":"SUBTOTAL(109,Giải_trí[Chênh lệch])","v":{"v":-50,"d":"-50 ₫"}}]
[null,"Tổng",{"$f":"SUBTOTAL(109,Nhà_ở[Chi phí theo kế hoạch])","v":{"v":1810,"d":"1,810 ₫"}},{"$f":"SUBTOTAL(109,Nhà_ở[Chi phí Thực tế])","v":{"v":1740,"d":"1,740 ₫"}},{"$f":"SUBTOTAL(109,Nhà_ở[Chênh lệch])","v":{"v":70,"d":"70 ₫"}}]
[{"$nulls":6},"KHOẢN VAY","Chi phí Theo kế hoạch","Chi phí Thực tế","Chênh lệch"]
[null,"ĐI LẠI","Chi phí Theo kế hoạch","Chi phí Thực tế","Chênh lệch",null,"Cá nhân",null,null,{"$f":"Khoản_vay[[#This Row],[Chi phí Theo kế hoạch]]-Khoản_vay[[#This Row],[Chi phí Thực tế]]","v":{"v":0,"d":"0 ₫"}}]
[null,"Thanh toán phương tiện đi lại",{"v":250,"d":"250 ₫"},{"v":250,"d":"250 ₫"},{"$f":"Đi_lại[[#This Row],[Chi phí Theo kế hoạch]]-Đi_lại[[#This Row],[Chi phí Thực tế]]","v":{"v":0,"d":"0 ₫"}},null,"Học viên",null,null,{"$f":"Khoản_vay[[#This Row],[Chi phí Theo kế hoạch]]-Khoản_vay[[#This Row],[Chi phí Thực tế]]","v":{"v":0,"d":"0 ₫"}}]
[null,"Tiền đi xe buýt/taxi",null,null,{"$f":"Đi_lại[[#This Row],[Chi phí Theo kế hoạch]]-Đi_lại[[#This Row],[Chi phí Thực tế]]","v":{"v":0,"d":"0 ₫"}},null,"Thẻ tín dụng",null,null,{"$f":"Khoản_vay[[#This Row],[Chi phí Theo kế hoạch]]-Khoản_vay[[#This Row],[Chi phí Thực tế]]","v":{"v":0,"d":"0 ₫"}}]
[null,"Bảo hiểm",null,null,{"$f":"Đi_lại[[#This Row],[Chi phí Theo kế hoạch]]-Đi_lại[[#This Row],[Chi phí Thực tế]]","v":{"v":0,"d":"0 ₫"}},null,"Thẻ tín dụng",null,null,{"$f":"Khoản_vay[[#This Row],[Chi phí Theo kế hoạch]]-Khoản_vay[[#This Row],[Chi phí Thực tế]]","v":{"v":0,"d":"0 ₫"}}]
[null,"Cấp phép",null,null,{"$f":"Đi_lại[[#This Row],[Chi phí Theo kế hoạch]]-Đi_lại[[#This Row],[Chi phí Thực tế]]","v":{"v":0,"d":"0 ₫"}},null,"Thẻ tín dụng",null,null,{"$f":"Khoản_vay[[#This Row],[Chi phí Theo kế hoạch]]-Khoản_vay[[#This Row],[Chi phí Thực tế]]","v":{"v":0,"d":"0 ₫"}}]
[null,"Nhiên liệu",null,null,{"$f":"Đi_lại[[#This Row],[Chi phí Theo kế hoạch]]-Đi_lại[[#This Row],[Chi phí Thực tế]]","v":{"v":0,"d":"0 ₫"}},null,"Khác",null,null,{"$f":"Khoản_vay[[#This Row],[Chi phí Theo kế hoạch]]-Khoản_vay[[#This Row],[Chi phí Thực tế]]","v":{"v":0,"d":"0 ₫"}}]
[null,"Bảo trì",null,null,{"$f":"Đi_lại[[#This Row],[Chi phí Theo kế hoạch]]-Đi_lại[[#This Row],[Chi phí Thực tế]]","v":{"v":0,"d":"0 ₫"}},null,"Tổng",{"$f":"SUBTOTAL(109,Khoản_vay[Chi phí Theo kế hoạch])","v":{"v":0,"d":"0 ₫"}},{"$f":"SUBTOTAL(109,Khoản_vay[Chi phí Thực tế])","v":{"v":0,"d":"0 ₫"}},{"$f":"SUBTOTAL(109,Khoản_vay[Chênh lệch])","v":{"v":0,"d":"0 ₫"}}]
[null,"Khác",null,null,{"$f":"Đi_lại[[#This Row],[Chi phí Theo kế hoạch]]-Đi_lại[[#This Row],[Chi phí Thực tế]]","v":{"v":0,"d":"0 ₫"}}]
[null,"Tổng",{"$f":"SUBTOTAL(109,Đi_lại[Chi phí Theo kế hoạch])","v":{"v":250,"d":"250 ₫"}},{"$f":"SUBTOTAL(109,Đi_lại[Chi phí Thực tế])","v":{"v":250,"d":"250 ₫"}},{"$f":"SUBTOTAL(109,Đi_lại[Chênh lệch])","v":{"v":0,"d":"0 ₫"}},null,"THUẾ","Chi phí Theo kế hoạch","Chi phí Thực tế","Chênh lệch"]
[{"$nulls":6},"Liên bang",null,null,{"$f":"Thuế[[#This Row],[Chi phí Theo kế hoạch]]-Thuế[[#This Row],[Chi phí Thực tế]]","v":{"v":0,"d":"0 ₫"}}]
[null,"BẢO HIỂM","Chi phí Theo kế hoạch","Chi phí Thực tế","Chênh lệch",null,"Tiểu bang",null,null,{"$f":"Thuế[[#This Row],[Chi phí Theo kế hoạch]]-Thuế[[#This Row],[Chi phí Thực tế]]","v":{"v":0,"d":"0 ₫"}}]
[null,"Nhà ở",null,null,{"$f":"Bảo_hiểm[[#This Row],[Chi phí Theo kế hoạch]]-Bảo_hiểm[[#This Row],[Chi phí Thực tế]]","v":{"v":0,"d":"0 ₫"}},null,"Địa phương",null,null,{"$f":"Thuế[[#This Row],[Chi phí Theo kế hoạch]]-Thuế[[#This Row],[Chi phí Thực tế]]","v":{"v":0,"d":"0 ₫"}}]
[null,"Sức khỏe",null,null,{"$f":"Bảo_hiểm[[#This Row],[Chi phí Theo kế hoạch]]-Bảo_hiểm[[#This Row],[Chi phí Thực tế]]","v":{"v":0,"d":"0 ₫"}},null,"Khác",null,null,{"$f":"Thuế[[#This Row],[Chi phí Theo kế hoạch]]-Thuế[[#This Row],[Chi phí Thực tế]]","v":{"v":0,"d":"0 ₫"}}]
[null,"Đời sống",null,null,{"$f":"Bảo_hiểm[[#This Row],[Chi phí Theo kế hoạch]]-Bảo_hiểm[[#This Row],[Chi phí Thực tế]]","v":{"v":0,"d":"0 ₫"}},null,"Tổng",{"$f":"SUBTOTAL(109,Thuế[Chi phí Theo kế hoạch])","v":{"v":0,"d":"0 ₫"}},{"$f":"SUBTOTAL(109,Thuế[Chi phí Thực tế])","v":{"v":0,"d":"0 ₫"}},{"$f":"SUBTOTAL(109,Thuế[Chênh lệch])","v":{"v":0,"d":"0 ₫"}}]
[null,"Khác",null,null,{"$f":"Bảo_hiểm[[#This Row],[Chi phí Theo kế hoạch]]-Bảo_hiểm[[#This Row],[Chi phí Thực tế]]","v":{"v":0,"d":"0 ₫"}}]
[null,"Tổng",{"$f":"SUBTOTAL(109,Bảo_hiểm[Chi phí Theo kế hoạch])","v":{"v":0,"d":"0 ₫"}},{"$f":"SUBTOTAL(109,Bảo_hiểm[Chi phí Thực tế])","v":{"v":0,"d":"0 ₫"}},{"$f":"SUBTOTAL(109,Bảo_hiểm[Chênh lệch])","v":{"v":0,"d":"0 ₫"}},null,"TIẾT KIỆM HOẶC ĐẦU TƯ","Chi phí Theo kế hoạch","Chi phí Thực tế","Chênh lệch"]
[{"$nulls":6},"Tài khoản hưu trí",null,null,{"$f":"Tiết_kiệm_hoặc_đầu_tư[[#This Row],[Chi phí Theo kế hoạch]]-Tiết_kiệm_hoặc_đầu_tư[[#This Row],[Chi phí Thực tế]]","v":{"v":0,"d":"0 ₫"}}]
[null,"ĂN UỐNG","Chi phí Theo kế hoạch","Chi phí Thực tế","Chênh lệch",null,"Tài khoản đầu tư",null,null,{"$f":"Tiết_kiệm_hoặc_đầu_tư[[#This Row],[Chi phí Theo kế hoạch]]-Tiết_kiệm_hoặc_đầu_tư[[#This Row],[Chi phí Thực tế]]","v":{"v":0,"d":"0 ₫"}}]
[null,"Tạp phẩm",null,null,{"$f":"Ăn_uống[[#This Row],[Chi phí Theo kế hoạch]]-Ăn_uống[[#This Row],[Chi phí Thực tế]]","v":{"v":0,"d":"0 ₫"}},null,"Khác",null,null,{"$f":"Tiết_kiệm_hoặc_đầu_tư[[#This Row],[Chi phí Theo kế hoạch]]-Tiết_kiệm_hoặc_đầu_tư[[#This Row],[Chi phí Thực tế]]","v":{"v":0,"d":"0 ₫"}}]
[null,"Ăn ngoài",null,null,{"$f":"Ăn_uống[[#This Row],[Chi phí Theo kế hoạch]]-Ăn_uống[[#This Row],[Chi phí Thực tế]]","v":{"v":0,"d":"0 ₫"}},null,"Tổng",{"$f":"SUBTOTAL(109,Tiết_kiệm_hoặc_đầu_tư[Chi phí Theo kế hoạch])","v":{"v":0,"d":"0 ₫"}},{"$f":"SUBTOTAL(109,Tiết_kiệm_hoặc_đầu_tư[Chi phí Thực tế])","v":{"v":0,"d":"0 ₫"}},{"$f":"SUBTOTAL(109,Tiết_kiệm_hoặc_đầu_tư[Chênh lệch])","v":{"v":0,"d":"0 ₫"}}]
[null,"Khác",null,null,{"$f":"Ăn_uống[[#This Row],[Chi phí Theo kế hoạch]]-Ăn_uống[[#This Row],[Chi phí Thực tế]]","v":{"v":0,"d":"0 ₫"}}]
[null,"Tổng",{"$f":"SUBTOTAL(109,Ăn_uống[Chi phí Theo kế hoạch])","v":{"v":0,"d":"0 ₫"}},{"$f":"SUBTOTAL(109,Ăn_uống[Chi phí Thực tế])","v":{"v":0,"d":"0 ₫"}},{"$f":"SUBTOTAL(109,Ăn_uống[Chênh lệch])","v":{"v":0,"d":"0 ₫"}},null,"QUÀ TẶNG VÀ KHOẢN QUYÊN GÓP","Chi phí Theo kế hoạch","Chi phí Thực tế","Chênh lệch"]
[{"$nulls":6},"Khoản từ thiện 1",null,null,{"$f":"Quà_tặng_và_quyên_góp[[#This Row],[Chi phí Theo kế hoạch]]-Quà_tặng_và_quyên_góp[[#This Row],[Chi phí Thực tế]]","v":{"v":0,"d":"0 ₫"}}]
[null,"VẬT NUÔI","Chi phí Theo kế hoạch","Chi phí Thực tế","Chênh lệch",null,"Khoản từ thiện 2",null,null,{"$f":"Quà_tặng_và_quyên_góp[[#This Row],[Chi phí Theo kế hoạch]]-Quà_tặng_và_quyên_góp[[#This Row],[Chi phí Thực tế]]","v":{"v":0,"d":"0 ₫"}}]
[null,"Thực phẩm",null,null,{"$f":"Vật_nuôi[[#This Row],[Chi phí Theo kế hoạch]]-Vật_nuôi[[#This Row],[Chi phí Thực tế]]","v":{"v":0,"d":"0 ₫"}},null,"Khoản từ thiện 3",null,null,{"$f":"Quà_tặng_và_quyên_góp[[#This Row],[Chi phí Theo kế hoạch]]-Quà_tặng_và_quyên_góp[[#This Row],[Chi phí Thực tế]]","v":{"v":0,"d":"0 ₫"}}]
[null,"Y tế",null,null,{"$f":"Vật_nuôi[[#This Row],[Chi phí Theo kế hoạch]]-Vật_nuôi[[#This Row],[Chi phí Thực tế]]","v":{"v":0,"d":"0 ₫"}},null,"Tổng",{"$f":"SUBTOTAL(109,Quà_tặng_và_quyên_góp[Chi phí Theo kế hoạch])","v":{"v":0,"d":"0 ₫"}},{"$f":"SUBTOTAL(109,Quà_tặng_và_quyên_góp[Chi phí Thực tế])","v":{"v":0,"d":"0 ₫"}},{"$f":"SUBTOTAL(109,Quà_tặng_và_quyên_góp[Chênh lệch])","v":{"v":0,"d":"0 ₫"}}]
[null,"Chăm sóc vật nuôi",null,null,{"$f":"Vật_nuôi[[#This Row],[Chi phí Theo kế hoạch]]-Vật_nuôi[[#This Row],[Chi phí Thực tế]]","v":{"v":0,"d":"0 ₫"}}]
[null,"Đồ chơi",null,null,{"$f":"Vật_nuôi[[#This Row],[Chi phí Theo kế hoạch]]-Vật_nuôi[[#This Row],[Chi phí Thực tế]]","v":{"v":0,"d":"0 ₫"}},null,"PHÁP LÝ","Chi phí Theo kế hoạch","Chi phí Thực tế","Chênh lệch"]
[null,"Khác",null,null,{"$f":"Vật_nuôi[[#This Row],[Chi phí Theo kế hoạch]]-Vật_nuôi[[#This Row],[Chi phí Thực tế]]","v":{"v":0,"d":"0 ₫"}},null,"Luật sư",null,null,{"$f":"Pháp_lý[[#This Row],[Chi phí Theo kế hoạch]]-Pháp_lý[[#This Row],[Chi phí Thực tế]]","v":{"v":0,"d":"0 ₫"}}]
[null,"Tổng",{"$f":"SUBTOTAL(109,Vật_nuôi[Chi phí Theo kế hoạch])","v":{"v":0,"d":"0 ₫"}},{"$f":"SUBTOTAL(109,Vật_nuôi[Chi phí Thực tế])","v":{"v":0,"d":"0 ₫"}},{"$f":"SUBTOTAL(109,Vật_nuôi[Chênh lệch])","v":{"v":0,"d":"0 ₫"}},null,"Tiền cấp dưỡng",null,null,{"$f":"Pháp_lý[[#This Row],[Chi phí Theo kế hoạch]]-Pháp_lý[[#This Row],[Chi phí Thực tế]]","v":{"v":0,"d":"0 ₫"}}]
[{"$nulls":6},"Khoản thanh toán khi giữ vật thế chấp hoặc theo phán quyết",null,null,{"$f":"Pháp_lý[[#This Row],[Chi phí Theo kế hoạch]]-Pháp_lý[[#This Row],[Chi phí Thực tế]]","v":{"v":0,"d":"0 ₫"}}]
[null,"CHĂM SÓC CÁ NHÂN","Chi phí Theo kế hoạch","Chi phí Thực tế","Chênh lệch",null,"Khác",null,null,{"$f":"Pháp_lý[[#This Row],[Chi phí Theo kế hoạch]]-Pháp_lý[[#This Row],[Chi phí Thực tế]]","v":{"v":0,"d":"0 ₫"}}]
[null,"Y tế",null,null,{"$f":"Chăm_sóc_cá_nhân[[#This Row],[Chi phí Theo kế hoạch]]-Chăm_sóc_cá_nhân[[#This Row],[Chi phí Thực tế]]","v":{"v":0,"d":"0 ₫"}},null,"Tổng",{"$f":"SUBTOTAL(109,Pháp_lý[Chi phí Theo kế hoạch])","v":{"v":0,"d":"0 ₫"}},{"$f":"SUBTOTAL(109,Pháp_lý[Chi phí Thực tế])","v":{"v":0,"d":"0 ₫"}},{"$f":"SUBTOTAL(109,Pháp_lý[Chênh lệch])","v":{"v":0,"d":"0 ₫"}}]
[null,"Tóc/móng",null,null,{"$f":"Chăm_sóc_cá_nhân[[#This Row],[Chi phí Theo kế hoạch]]-Chăm_sóc_cá_nhân[[#This Row],[Chi phí Thực tế]]","v":{"v":0,"d":"0 ₫"}}]
[null,"Trang phục",null,null,{"$f":"Chăm_sóc_cá_nhân[[#This Row],[Chi phí Theo kế hoạch]]-Chăm_sóc_cá_nhân[[#This Row],[Chi phí Thực tế]]","v":{"v":0,"d":"0 ₫"}}]
[null,"Giặt khô",null,null,{"$f":"Chăm_sóc_cá_nhân[[#This Row],[Chi phí Theo kế hoạch]]-Chăm_sóc_cá_nhân[[#This Row],[Chi phí Thực tế]]","v":{"v":0,"d":"0 ₫"}}]
[null,"Phòng tập",null,null,{"$f":"Chăm_sóc_cá_nhân[[#This Row],[Chi phí Theo kế hoạch]]-Chăm_sóc_cá_nhân[[#This Row],[Chi phí Thực tế]]","v":{"v":0,"d":"0 ₫"}}]
[null,"Thuế hoặc phí tổ chức",null,null,{"$f":"Chăm_sóc_cá_nhân[[#This Row],[Chi phí Theo kế hoạch]]-Chăm_sóc_cá_nhân[[#This Row],[Chi phí Thực tế]]","v":{"v":0,"d":"0 ₫"}}]
[null,"Khác",null,null,{"$f":"Chăm_sóc_cá_nhân[[#This Row],[Chi phí Theo kế hoạch]]-Chăm_sóc_cá_nhân[[#This Row],[Chi phí Thực tế]]","v":{"v":0,"d":"0 ₫"}}]
[null,"Tổng",{"$f":"SUBTOTAL(109,Chăm_sóc_cá_nhân[Chi phí Theo kế hoạch])","v":{"v":0,"d":"0 ₫"}},{"$f":"SUBTOTAL(109,Chăm_sóc_cá_nhân[Chi phí Thực tế])","v":{"v":0,"d":"0 ₫"}},{"$f":"SUBTOTAL(109,Chăm_sóc_cá_nhân[Chênh lệch])","v":{"v":0,"d":"0 ₫"}}]